bitfinex/quotes_BTCUSD_20251219
["timestamp","ask_amount","ask_price","bid_price","bid_amount"]
[1766142630645,0.00036315,88263.0,88255.0,0.0002471]
[1766142630646,0.00036315,88263.0,88258.0,0.01133041]
[1766142630845,3.15e-06,88263.0,88258.0,0.46476]
[1766142631679,3.15e-06,88263.0,88256.0,0.02714134]
[1766142631904,0.46356315,88263.0,88255.0,0.05005004]
[1766142632097,0.46356315,88263.0,88255.0,0.02738844]
[1766142633290,0.46356315,88263.0,88255.0,0.03871924]
[1766142633452,0.0025,88275.0,88260.0,0.47609016]
[1766142633659,0.0025,88275.0,88257.0,0.07357]
[1766142633660,8.224e-05,88275.0,88269.0,0.02714134]
[1766142634322,8.224e-05,88275.0,88269.0,0.03847034]
[1766142634522,0.00396482,88283.0,88271.0,0.01132874]
[1766142634720,0.00396482,88283.0,88271.0,0.06808138]
[1766142634923,0.46356,88286.0,88271.0,0.06808138]
[1766142634924,0.46356,88286.0,88275.0,0.01132823]
[1766142635127,0.41324,88290.0,88277.0,0.06796786]
[1766142635328,0.90617,88286.0,88276.0,0.00568]
[1766142635678,0.001099,88277.0,88276.0,0.00568]
[1766142635862,0.40756,88285.0,88276.0,0.00568]
[1766142636077,0.40756,88284.0,88276.0,0.00568]
[1766142638087,0.40756,88284.0,88278.0,0.06796654]
[1766142638281,0.40756,88284.0,88278.0,0.01132785]
[1766142638458,0.40756,88284.0,88276.0,0.00568]
[1766142639768,0.40756,88284.0,88277.0,0.01132797]
[1766142639975,0.06668477,88302.0,88276.0,0.0170081]
[1766142639976,0.01132297,88316.0,88293.0,0.47524]
[1766142640194,0.00568,88309.0,88296.0,1.83245611]
[1766142640427,0.00568,88309.0,88297.0,0.01132541]
[1766142640609,0.00568,88309.0,88299.0,0.01132515]
[1766142640974,0.00568,88309.0,88298.0,0.06795169]
[1766142640975,0.00568,88309.0,88298.0,0.01132528]
[1766142641175,0.00568,88309.0,88297.0,0.02265082]
[1766142641800,0.00568,88309.0,88297.0,0.03408516]
[1766142642013,0.00568,88309.0,88297.0,0.02275975]
[1766142642650,0.00568,88309.0,88297.0,0.00010893]
[1766142643540,0.00568,88309.0,88298.0,0.01132528]
[1766142643742,0.00568,88309.0,88298.0,0.09509282]
[1766142643909,0.00568,88309.0,88300.0,0.01132502]
[1766142644118,0.0025,88319.0,88306.0,0.47524]
[1766142644315,0.00568,88320.0,88307.0,0.02264826]
[1766142644521,0.00568,88320.0,88307.0,0.03397239]
[1766142644757,0.00568,88320.0,88307.0,0.02264826]
[1766142645134,0.00568,88320.0,88307.0,0.03397239]
[1766142645760,0.00568,88320.0,88307.0,0.02264826]
[1766142646097,0.00568,88320.0,88307.0,0.03397239]
[1766142646284,0.00568,88320.0,88307.0,0.02264826]
[1766142646443,0.00568,88320.0,88307.0,0.03397239]
[1766142647203,0.00568,88320.0,88308.0,0.011324]
[1766142647404,0.00568,88320.0,88310.0,2.44152044]
[1766142648306,0.00568,88320.0,88312.0,0.02714134]
[1766142648876,0.00568,88320.0,88312.0,0.51370482]
[1766142649112,0.41006,88328.0,88316.0,0.05661482]
[1766142649284,0.00568,88327.0,88318.0,2.44152044]
[1766142650504,0.00568,88327.0,88317.0,0.47524]
[1766142652244,0.00568,88327.0,88318.0,0.00568]
[1766142653805,0.40756,88330.0,88319.0,0.01132259]
[1766142654001,0.40756,88330.0,88318.0,0.01700272]
[1766142654428,0.40756,88330.0,88321.0,0.01132233]
[1766142654641,0.40756,88330.0,88320.0,0.06793477]
[1766142655277,0.40756,88330.0,88320.0,0.01132246]
[1766142655479,0.40756,88330.0,88318.0,0.01700272]
[1766142655668,0.40756,88330.0,88319.0,0.05661271]
[1766142656709,0.40756,88330.0,88321.0,0.01132233]
[1766142656900,0.40756,88330.0,88319.0,0.01132259]
[1766142657446,0.001099,88319.0,88318.0,0.00568]
[1766142657843,0.49861,88329.0,88318.0,0.00568]
[1766142658152,0.90617,88329.0,88318.0,0.00568]
[1766142658382,0.90617,88330.0,88318.0,0.00568]
[1766142658589,0.00568,88331.0,88318.0,0.00568]
[1766142659741,0.90617,88330.0,88318.0,0.00568]
[1766142659940,0.00568,88331.0,88318.0,0.00568]
[1766142660464,0.90617,88330.0,88318.0,0.00568]
[1766142661317,0.00568,88331.0,88318.0,0.00568]
[1766142661987,0.90617,88330.0,88318.0,0.00568]
[1766142662193,0.00568,88331.0,88318.0,0.00568]
[1766142662395,0.90617,88330.0,88318.0,0.00568]
[1766142662539,0.00568,88331.0,88318.0,0.00568]
[1766142662739,0.40756,88329.0,88318.0,0.00568]
[1766142662950,0.90617,88328.0,88318.0,0.00568]
[1766142663398,0.90617,88328.0,88318.0,1.83612781]
[1766142666538,0.90617,88328.0,88320.0,0.01132246]
[1766142666748,0.90617,88328.0,88318.0,1.84745053]
[1766142667138,0.00568,88331.0,88319.0,0.47698]
[1766142667794,0.00568,88331.0,88319.0,0.48830259]
[1766142668121,0.41274,88330.0,88319.0,0.47698]
[1766142668448,0.8734,88330.0,88319.0,0.47698]
[1766142670675,0.00568,88331.0,88319.0,0.48830259]
[1766142670909,0.0025,88335.0,88323.0,0.47698]
[1766142671223,0.8759,88333.0,88324.0,0.004581]
[1766142671388,0.8734,88332.0,88324.0,1e-06]
[1766142671926,0.0025,88333.0,88321.0,0.00568]
[1766142672335,0.00258238,88333.0,88321.0,0.00568]
[1766142672515,0.8734,88332.0,88321.0,0.00568]
[1766142672694,0.01390317,88333.0,88321.0,0.00568]
[1766142672890,0.46066,88331.0,88321.0,0.00568]
[1766142673090,0.46066,88329.0,88321.0,0.00568]
[1766142673717,0.8734,88329.0,88321.0,0.00568]
[1766142674109,0.46066,88329.0,88321.0,0.00568]
[1766142675732,0.8734,88329.0,88321.0,0.00568]
[1766142677353,0.8734,88331.0,88321.0,0.00568]
[1766142677551,0.01132092,88332.0,88321.0,0.00568]
[1766142677757,0.41274,88330.0,88321.0,0.00568]
[1766142678176,0.41274,88323.0,88313.0,0.00568]
[1766142678383,0.41274,88319.0,88312.0,0.00568]
[1766142678585,0.41274,88319.0,88313.0,0.02964134]
[1766142679422,0.41842,88324.0,88313.0,0.02964134]
[1766142679606,0.41842,88324.0,88314.0,1.83048129]
[1766142679804,0.41274,88331.0,88317.0,0.01132284]
[1766142679969,0.41842,88331.0,88324.0,0.001099]
[1766142680391,0.41842,88331.0,88319.0,2.30746129]
[1766142682062,0.00568,88331.0,88321.0,0.47698]
[1766142682451,0.00568,88331.0,88322.0,0.02264441]
[1766142682673,0.00568,88331.0,88321.0,0.47698]
[1766142683489,8.238e-05,88333.0,88330.0,0.02714134]
[1766142683667,2.38e-06,88333.0,88332.0,0.96801462]
[1766142684023,0.00568,88346.0,88335.0,2.33412183]
[1766142684225,0.00568,88346.0,88336.0,1.83048129]
[1766142684657,0.00568,88347.0,88336.0,1.83048129]
[1766142684856,0.00568,88347.0,88337.0,1.83048129]
[1766142688014,0.00568,88347.0,88338.0,0.49232]
[1766142688364,0.00568,88347.0,88339.0,0.01132002]
[1766142688914,0.00568,88347.0,88338.0,0.50364015]
[1766142689074,0.00568,88347.0,88339.0,0.01132002]
[1766142689278,0.00568,88347.0,88338.0,0.49232]
[1766142689574,0.00568,88347.0,88338.0,0.50364015]
[1766142689981,0.00568,88347.0,88338.0,0.49232]
[1766142691370,0.47209,88345.0,88337.0,1.83048129]
[1766142691592,0.92118,88344.0,88337.0,1.83048129]
[1766142692063,0.92118,88344.0,88336.0,0.00568]
[1766142692294,0.92118,88346.0,88336.0,0.498]
[1766142692487,0.92118,88346.0,88336.0,0.50932041]
[1766142692692,0.47209,88346.0,88337.0,0.01132028]
[1766142692866,0.47209,88346.0,88336.0,0.56592243]
[1766142693085,0.47209,88346.0,88336.0,0.50932041]
[1766142693498,0.47209,88346.0,88337.0,0.01132028]
[1766142693710,0.00568,88347.0,88340.0,0.0113199]
[1766142693888,0.0004,88362.0,88348.0,0.49232]
[1766142694204,0.0004,88362.0,88350.0,1.83048129]
[1766142694205,0.44392,88360.0,88350.0,1.83048129]
[1766142694452,0.06789996,88366.0,88350.0,1.83048129]
[1766142694453,0.33935223,88404.0,88367.0,0.47391]
[1766142694649,0.00568,88390.0,88373.0,1.83048129]
[1766142694833,0.44392,88387.0,88373.0,1.84179696]
[1766142695031,0.00089891,88383.0,88380.0,0.06788796]
[1766142695233,0.00089891,88383.0,88380.0,0.01131477]
[1766142695469,0.00568,88390.0,88386.0,0.011314]
[1766142695671,0.00568,88390.0,88387.0,0.01131388]
[1766142695881,0.48187,88397.0,88387.0,0.01131388]
[1766142696085,0.48187,88397.0,88387.0,1.84179517]
[1766142696503,0.48187,88397.0,88387.0,1.89836445]
[1766142696710,0.48187,88397.0,88388.0,0.01131375]
[1766142696917,0.01131093,88410.0,88388.0,0.01131375]
[1766142696918,0.91991,88412.0,88398.0,0.01131247]
[1766142697143,0.02714134,88411.0,88400.0,0.47391]
[1766142697346,0.02714134,88411.0,88401.0,0.01050647]
[1766142697562,0.02714134,88411.0,88401.0,0.01508747]
[1766142697768,0.44412,88408.0,88401.0,0.01508747]
[1766142697969,0.44412,88408.0,88401.0,0.00568]
[1766142698390,0.0002,88408.0,88401.0,0.00568]
[1766142700265,0.47599,88403.0,88395.0,0.0025]
[1766142700394,0.91991,88402.0,88395.0,0.0025]
[1766142700769,0.91991,88402.0,88384.0,0.91194]
[1766142700770,0.47599,88391.0,88380.0,1.87580129]
[1766142700906,0.44392,88390.0,88380.0,1.83616129]
[1766142701111,0.91991,88390.0,88380.0,1.83048129]
[1766142701348,0.00024635,88391.0,88381.0,0.01131464]
[1766142701544,0.00024635,88391.0,88390.0,0.001099]
[1766142701742,0.00024635,88391.0,88386.0,0.011314]
[1766142702121,0.00024635,88391.0,88384.0,0.01131426]
[1766142702526,0.00024635,88391.0,88382.0,0.47391]
[1766142702736,0.00024635,88391.0,88381.0,0.0025]
[1766142702953,0.92015635,88391.0,88381.0,0.0025]
[1766142704177,0.44392,88390.0,88381.0,0.0025]
[1766142704742,0.44392,88390.0,88381.0,0.00818]
[1766142705139,0.44392,88390.0,88381.0,0.0025]
[1766142705362,0.44392,88390.0,88373.0,0.44934567]
[1766142705363,0.47599,88385.0,88378.0,0.00568]
[1766142705699,0.91991,88385.0,88376.0,0.00568]
[1766142705904,0.00060985,88391.0,88376.0,0.00568]
[1766142705905,0.01192321,88391.0,88376.0,0.00568]
[1766142706211,0.01131349,88390.0,88380.0,1.83048129]
[1766142706372,0.47599,88389.0,88380.0,1.83048129]
[1766142706563,0.91991,88387.0,88380.0,1.83048129]
[1766142706772,0.44392,88386.0,88377.0,1.83048129]
[1766142706991,0.91991,88386.0,88377.0,1.83048129]
[1766142707350,0.01192321,88391.0,88377.0,1.83048129]
[1766142707550,0.00060985,88391.0,88380.0,1.83048129]
[1766142707760,0.91991,88390.0,88380.0,1.83048129]
[1766142707961,0.00060985,88391.0,88380.0,1.83048129]
[1766142708162,0.91991,88390.0,88380.0,1.83048129]
[1766142708412,0.00060985,88391.0,88380.0,1.83048129]
[1766142708664,0.91991,88390.0,88380.0,1.83048129]
[1766142708807,0.00060985,88391.0,88380.0,1.83048129]
[1766142709020,0.00060985,88391.0,88371.0,0.0703955]
[1766142709021,0.01131503,88378.0,88361.0,0.47391]
[1766142709220,0.01131503,88378.0,88336.0,0.45281399]
[1766142709221,0.47599,88375.0,88360.0,1.83048129]
[1766142709587,0.91991,88374.0,88365.0,1.83048129]
[1766142709763,0.44392,88373.0,88365.0,1.83048129]
[1766142709942,0.47599,88375.0,88365.0,1.83048129]
[1766142710149,0.47599,88375.0,88361.0,0.01699721]
[1766142710352,0.47599,88375.0,88365.0,1.83048129]
[1766142710558,0.91991,88375.0,88365.0,1.83048129]
[1766142711149,0.00568,88377.0,88368.0,0.06789786]
[1766142711349,0.00395943,88384.0,88373.0,0.0025]
[1766142711553,0.00395943,88384.0,88375.0,0.01131541]
[1766142711754,0.00395943,88384.0,88374.0,1.89837435]
[1766142711959,0.00395943,88384.0,88375.0,0.02263083]
[1766142712773,0.00395943,88384.0,88373.0,0.0025]
[1766142712945,0.44787943,88384.0,88373.0,0.0025]
[1766142713753,0.44392,88379.0,88370.0,0.01048531]
[1766142713928,0.91991,88379.0,88368.0,0.00568]
[1766142714089,0.47599,88374.0,88360.0,1.66211383]
[1766142714289,0.44392,88371.0,88358.0,0.47391]
[1766142714520,0.44392,88371.0,88359.0,0.00568]
[1766142714796,0.44392,88371.0,88359.0,0.01699746]
[1766142715205,0.44392,88371.0,88359.0,0.00568]
[1766142715413,0.01699503,88378.0,88359.0,0.00568]
[1766142715612,0.00568,88378.0,88363.0,0.01381695]
[1766142715830,0.00568,88378.0,88365.0,0.01131669]
[1766142716033,0.00568,88378.0,88366.0,0.01381656]
[1766142716412,0.00568,88378.0,88366.0,0.0025]
[1766142716835,0.00568,88378.0,88368.0,1.66211383]
[1766142717071,0.00568,88378.0,88366.0,0.47641]
[1766142717504,0.00568,88378.0,88368.0,0.01131631]
[1766142717808,0.00568,88378.0,88368.0,0.01699631]
[1766142718151,0.00568,88378.0,88368.0,0.00568]
[1766142720723,0.00568,88378.0,88369.0,0.01131618]
[1766142720929,0.00568,88384.0,88378.0,0.001099]
[1766142721129,0.00568,88384.0,88373.0,0.02263134]
[1766142721307,0.00568,88384.0,88372.0,0.47391]
[1766142721481,0.92559,88384.0,88373.0,0.02263134]
[1766142721672,0.91991,88384.0,88373.0,0.02831134]
[1766142721850,0.91991,88384.0,88373.0,0.00568]
[1766142722054,0.00568,88385.0,88373.0,0.00568]
[1766142722278,0.44392,88382.0,88373.0,0.00568]
[1766142722684,0.91991,88382.0,88373.0,0.00568]
[1766142722885,0.93122452,88382.0,88373.0,0.00568]
[1766142723085,0.01131439,88383.0,88373.0,0.00568]
[1766142723293,0.44392,88381.0,88373.0,0.00568]
[1766142723492,0.91991,88381.0,88372.0,0.00568]
[1766142725879,0.91991,88381.0,88373.0,0.01053183]
[1766142726084,0.91991,88381.0,88374.0,0.01053183]
[1766142726303,0.01131439,88383.0,88375.0,0.01053183]
[1766142726304,0.89649,88383.0,88375.0,0.01053183]
[1766142726491,0.89649,88383.0,88372.0,0.00568]
[1766142728032,0.07356533,88385.0,88372.0,0.00568]
[1766142728238,0.0025,88384.0,88372.0,0.00568]
[1766142728442,0.90780439,88383.0,88372.0,0.00568]
[1766142728649,0.89649,88383.0,88372.0,0.00568]
[1766142728860,0.07038567,88384.0,88372.0,0.00568]
[1766142729062,0.45212,88381.0,88372.0,0.00568]
[1766142729266,0.89649,88380.0,88372.0,0.00568]
[1766142730279,0.88912152,88380.0,88372.0,0.00568]
[1766142732400,0.01131439,88383.0,88367.0,0.00568]
[1766142732601,0.01131464,88381.0,88367.0,0.00568]
[1766142733070,0.89649,88381.0,88367.0,0.00568]
[1766142733270,0.01699477,88380.0,88367.0,0.00568]
[1766142733489,0.00568,88380.0,88367.0,0.00568]
[1766142733652,0.89649,88379.0,88367.0,0.00568]
[1766142733853,0.00568,88380.0,88367.0,0.00568]
[1766142734077,0.92363134,88379.0,88367.0,0.00568]
[1766142734276,0.02714134,88379.0,88367.0,0.00568]
[1766142734510,0.89649,88378.0,88367.0,0.00568]
[1766142734721,0.88543726,88378.0,88367.0,0.00568]
[1766142735410,0.45212,88378.0,88368.0,1.82842024]
[1766142735610,0.45212,88378.0,88367.0,0.00568]
[1766142735769,0.45212,88378.0,88365.0,0.0025]
[1766142735981,0.0565808,88370.0,88363.0,0.0025]
[1766142736171,0.45212,88369.0,88356.0,0.00568]
[1766142736382,0.45212,88369.0,88354.0,0.00568]
[1766142736696,0.44437,88366.0,88354.0,0.00568]
[1766142736894,0.89649,88366.0,88351.0,0.45188]
[1766142737096,0.89649,88366.0,88352.0,0.01699836]
[1766142737468,0.89649,88366.0,88353.0,0.01131823]
[1766142737671,0.89649,88366.0,88353.0,0.06790939]
[1766142738082,0.89649,88366.0,88354.0,0.0025]
[1766142738314,0.89649,88366.0,88354.0,0.0138181]
[1766142738519,0.00568,88370.0,88357.0,0.0025]
[1766142738917,0.43283,88370.0,88357.0,0.0025]
[1766142739314,0.91482,88370.0,88357.0,0.0025]
[1766142739716,0.90914,88368.0,88360.0,1.82842024]
[1766142740361,0.90914,88368.0,88358.0,1.82880194]
[1766142742133,0.92045631,88368.0,88354.0,0.48948]
[1766142742340,0.90914,88369.0,88354.0,0.48948]
[1766142742589,0.01131631,88368.0,88354.0,0.48948]
[1766142742796,0.42715,88366.0,88354.0,0.48948]
[1766142743704,0.90914,88365.0,88354.0,0.48948]
[1766142744071,0.48199,88365.0,88354.0,0.48948]
[1766142744893,0.48199,88365.0,88354.0,0.48098]
[1766142745975,0.42715,88369.0,88354.0,0.48098]
[1766142746170,0.42715,88369.0,88355.0,0.41228]
[1766142746378,0.90914,88369.0,88355.0,0.41228]
[1766142746790,0.42715,88368.0,88356.0,0.0025]
[1766142747243,0.42715,88368.0,88357.0,0.48698]
[1766142747711,0.42715,88368.0,88358.0,1.82880194]
[1766142748025,0.48199,88369.0,88359.0,0.48698]
[1766142748644,0.48199,88369.0,88363.0,0.06790132]
[1766142748850,0.00568,88377.0,88369.0,0.001099]
[1766142749269,0.00568,88377.0,88369.0,0.900359]
[1766142749470,0.00568,88377.0,88369.0,0.89926]
[1766142749680,0.00568,88377.0,88369.0,0.48698]
[1766142753359,0.004581,88377.0,88370.0,0.55487601]
[1766142753559,0.42715,88377.0,88369.0,0.0678965]
[1766142753809,0.42715,88377.0,88368.0,0.01131631]
[1766142753981,0.48199,88378.0,88368.0,0.01131631]
[1766142754513,0.48199,88378.0,88368.0,0.48058]
[1766142754811,0.00568,88379.0,88369.0,0.49189618]
[1766142755026,0.00568,88379.0,88371.0,0.49189592]
[1766142755206,0.00568,88379.0,88371.0,0.48058]
[1766142755582,0.00568,88379.0,88371.0,0.49189592]
[1766142755785,0.00568,88379.0,88371.0,0.48058]
[1766142756171,0.00568,88379.0,88369.0,0.01131618]
[1766142756373,0.39955,88381.0,88369.0,0.01131618]
[1766142758123,0.39955,88381.0,88370.0,0.01131605]
[1766142758319,0.8584,88381.0,88370.0,0.01131605]
[1766142758731,0.8584,88381.0,88371.0,0.01131592]
[1766142758940,0.8584,88381.0,88370.0,0.01131605]
[1766142759151,0.8584,88381.0,88369.0,0.06789699]
[1766142759353,0.8584,88381.0,88369.0,0.0627175]
[1766142759891,0.8584,88381.0,88370.0,0.01131605]
[1766142760319,0.8584,88381.0,88369.0,0.00613669]
[1766142760544,0.8584,88381.0,88368.0,0.48429762]
[1766142760764,0.8584,88381.0,88369.0,0.01131618]
[1766142760949,0.45885,88381.0,88369.0,0.01131618]
[1766142761121,0.39955,88380.0,88368.0,0.47298102]
[1766142761328,0.39955,88380.0,88368.0,0.42771631]
[1766142762300,0.39955,88380.0,88368.0,0.4164]
[1766142762940,0.39955,88380.0,88368.0,0.48429785]
[1766142763411,0.39955,88380.0,88369.0,0.01131618]
[1766142763721,0.39955,88380.0,88370.0,0.01131605]
[1766142764409,0.39955,88379.0,88370.0,1.82880194]
[1766142765416,0.39955,88379.0,88370.0,1.84011799]
[1766142765982,0.39955,88379.0,88370.0,1.82880194]
[1766142766166,0.45885,88380.0,88370.0,1.89669826]
[1766142766847,0.45885,88380.0,88371.0,0.01131592]
[1766142767189,0.45885,88380.0,88370.0,1.89669826]
[1766142767598,0.45885,88380.0,88371.0,0.01131592]
[1766142768036,0.45885,88380.0,88370.0,1.84011799]
[1766142769208,0.45885,88380.0,88370.0,1.82880194]
[1766142770027,0.45885,88380.0,88370.0,1.84011799]
[1766142770627,0.45885,88380.0,88370.0,1.82112494]
[1766142771089,0.45885,88380.0,88370.0,1.83244099]
[1766142771658,0.45885,88380.0,88370.0,1.82112494]
[1766142771659,0.8584,88380.0,88370.0,1.82112494]
[1766142772227,0.39955,88379.0,88370.0,1.82112494]
[1766142774593,0.39955,88379.0,88370.0,1.83244099]
[1766142775743,0.39955,88379.0,88370.0,1.88902119]
[1766142776152,0.39955,88379.0,88371.0,0.01131592]
[1766142776348,0.39955,88379.0,88370.0,1.83244099]
[1766142777344,0.39955,88379.0,88371.0,0.01131592]
[1766142777789,0.39955,88379.0,88372.0,0.0113158]
[1766142777999,0.39955,88379.0,88373.0,0.01131567]
[1766142778213,0.39955,88379.0,88373.0,0.06789398]
[1766142778443,0.45885,88380.0,88373.0,0.06789398]
[1766142778655,0.45885,88380.0,88373.0,0.01131567]
[1766142780146,0.06787117,88403.0,88382.0,0.01131452]
[1766142780371,0.06787117,88403.0,88390.0,1.82880194]
[1766142780372,0.45885,88399.0,88390.0,1.82880194]
[1766142780572,0.00568,88402.0,88382.0,0.01699452]
[1766142780780,0.001099,88390.0,88384.0,0.05657132]
[1766142780981,0.001099,88390.0,88381.0,0.00568]
[1766142781184,0.00568,88395.0,88381.0,0.00568]
[1766142781362,0.00568,88395.0,88382.0,0.89698]
[1766142781778,0.40523,88395.0,88382.0,0.89698]
[1766142782368,0.45885,88393.0,88381.0,0.42208]
[1766142782593,0.00568,88395.0,88383.0,0.01131439]
[1766142782799,0.00568,88395.0,88383.0,0.48058]
[1766142783011,0.00568,88395.0,88383.0,0.49189439]
[1766142783430,0.00568,88395.0,88386.0,0.011314]
[1766142783643,0.00568,88395.0,88384.0,0.90829426]
[1766142784061,0.86949,88394.0,88381.0,0.01699464]
[1766142784276,0.86949,88394.0,88383.0,0.01131439]
[1766142784482,0.86949,88394.0,88384.0,0.01131426]
[1766142784681,0.86949,88394.0,88382.0,0.06788684]
[1766142784887,0.86949,88394.0,88383.0,0.01131439]
[1766142785332,0.86949,88394.0,88383.0,0.06788625]
[1766142785534,0.86949,88394.0,88384.0,0.01131426]
[1766142785779,0.86949,88394.0,88385.0,0.02262827]
[1766142785978,0.00568,88395.0,88381.0,0.00568]
[1766142785979,0.001099,88385.0,88381.0,0.00568]
[1766142786181,0.001099,88385.0,88382.0,0.01131452]
[1766142786388,0.45177,88392.0,88381.0,0.01699464]
[1766142786581,0.45177,88392.0,88382.0,0.03394356]
[1766142786802,0.45177,88392.0,88384.0,0.01131426]
[1766142787197,0.45177,88392.0,88383.0,0.01131439]
[1766142787609,0.45177,88392.0,88382.0,1.89562719]
[1766142788055,0.45177,88392.0,88382.0,1.83905466]
[1766142788256,0.45177,88392.0,88382.0,1.82774014]
[1766142788657,0.45177,88392.0,88381.0,0.00568]
[1766142788658,0.001099,88382.0,88381.0,0.00818]
[1766142788859,0.45177,88390.0,88381.0,0.00818]
[1766142790617,0.45177,88390.0,88381.0,0.01949464]
[1766142790819,0.00568,88395.0,88384.0,0.01131426]
[1766142791031,0.00568,88395.0,88385.0,1.82774014]
[1766142791686,0.00568,88395.0,88385.0,1.83905427]
[1766142791841,0.00568,88395.0,88387.0,0.01131388]
[1766142792045,0.1133884,88407.0,88386.0,0.02262801]
[1766142792046,0.45177,88402.0,88390.0,0.01131349]
[1766142792245,0.00568,88401.0,88393.0,0.47337311]
[1766142792483,0.00568,88401.0,88394.0,0.46206]
[1766142794041,0.00568,88401.0,88390.0,0.0025]
[1766142794205,0.00568,88401.0,88391.0,0.46206]
[1766142794537,0.00568,88401.0,88391.0,0.5299401]
[1766142794750,0.00568,88401.0,88392.0,0.06787943]
[1766142794925,0.00568,88401.0,88394.0,0.06787732]
[1766142795125,0.00568,88401.0,88395.0,0.03393856]
[1766142795587,0.00568,88401.0,88396.0,0.43668272]
[1766142795789,0.00568,88404.0,88400.0,0.46206]
[1766142795997,8.623e-05,88404.0,88400.0,0.46206]
[1766142796198,0.0002,88407.0,88400.0,0.46206]
[1766142796965,0.0002,88407.0,88400.0,0.47337221]
[1766142797151,0.0002,88407.0,88400.0,0.46206]
[1766142797705,1e-08,88416.0,88415.0,0.87887]
[1766142797941,1e-08,88416.0,88415.0,0.47508]
[1766142798177,1e-08,88416.0,88415.0,0.88137]
[1766142798395,1e-08,88422.0,88421.0,0.93541765]
[1766142798615,1e-08,88422.0,88421.0,0.94109765]
[1766142798824,0.00568,88435.0,88425.0,0.01130901]
[1766142799023,0.00578888,88435.0,88424.0,0.06785437]
[1766142799230,0.00578888,88435.0,88425.0,0.01130901]
[1766142799409,0.00578888,88435.0,88425.0,1.82774014]
[1766142799615,0.00578888,88435.0,88423.0,0.48638927]
[1766142799794,0.41005888,88435.0,88423.0,0.47508]
[1766142799979,0.40427,88433.0,88422.0,0.0113094]
[1766142800427,0.49949,88434.0,88423.0,0.01130927]
[1766142800633,0.49949,88434.0,88422.0,0.4863894]
[1766142800876,0.40427,88433.0,88423.0,0.01130927]
[1766142801134,0.49949,88432.0,88423.0,0.01130927]
[1766142801444,0.49949,88432.0,88422.0,0.06785606]
[1766142801648,0.49949,88432.0,88423.0,0.01130927]
[1766142801855,0.49949,88432.0,88424.0,0.01130914]
[1766142802126,0.49949,88432.0,88422.0,0.06785624]
[1766142802127,0.00578888,88435.0,88423.0,0.01130927]
[1766142802257,0.00578888,88435.0,88424.0,0.01130914]
[1766142802444,0.00578888,88435.0,88425.0,1.83904915]
[1766142802645,0.00578888,88435.0,88425.0,1.82774014]
[1766142803866,0.00578888,88435.0,88427.0,0.47508]
[1766142804066,0.00010888,88435.0,88427.0,0.47508]
[1766142804633,0.00568,88439.0,88431.0,0.40629]
[1766142804838,0.40427,88449.0,88436.0,0.89017761]
[1766142805063,0.00568,88448.0,88439.0,1.82774014]
[1766142805265,0.90376,88452.0,88440.0,0.4863871]
[1766142805468,0.00568,88451.0,88441.0,0.02261394]
[1766142805636,0.00568,88451.0,88440.0,0.4863871]
[1766142805637,0.00568,88451.0,88440.0,0.47508]
[1766142806045,0.00568,88451.0,88439.0,1.82774014]
[1766142806468,0.90376,88448.0,88439.0,1.82774014]
[1766142806804,0.40427,88447.0,88439.0,1.82774014]
[1766142807346,0.40427,88447.0,88437.0,1.83342014]
[1766142807729,0.49949,88446.0,88437.0,0.00568]
[1766142807964,0.90376,88445.0,88438.0,1.82774014]
[1766142808174,0.90376,88445.0,88437.0,0.01698748]
[1766142808567,0.49949,88445.0,88437.0,0.01698748]
[1766142808814,0.49949,88445.0,88437.0,0.07352456]
[1766142808986,0.49949,88445.0,88437.0,0.01698748]
[1766142809176,0.49949,88445.0,88438.0,0.06784392]
[1766142809376,0.49949,88445.0,88437.0,0.07352486]
[1766142809598,0.49949,88445.0,88438.0,0.01130735]
[1766142810005,0.49949,88445.0,88437.0,0.00568]
[1766142810216,0.00024633,88438.0,88437.0,0.00568]
[1766142810787,0.49759282,88445.0,88437.0,0.00568]
[1766142810985,0.49699247,88445.0,88437.0,0.00568]
[1766142811870,0.40427,88449.0,88437.0,0.00568]
[1766142812077,0.40427,88449.0,88439.0,1.82558926]
[1766142812638,0.0002463,88446.0,88439.0,1.82558926]
[1766142812841,0.0002463,88446.0,88437.0,0.48076]
[1766142813162,0.0002463,88446.0,88438.0,0.01130735]
[1766142813355,0.0002463,88446.0,88437.0,0.48076]
[1766142813547,0.0002463,88446.0,88438.0,0.01130735]
[1766142813727,0.0002463,88446.0,88439.0,0.01130722]
[1766142813927,0.0002463,88446.0,88440.0,0.0113071]
[1766142814182,0.00568,88451.0,88441.0,0.49284]
[1766142814340,0.00568,88451.0,88442.0,0.91413684]
[1766142814684,0.0025,88459.0,88442.0,0.97067092]
[1766142814881,0.89653,88456.0,88442.0,0.90283]
[1766142815184,0.0025,88457.0,88442.0,0.49284]
[1766142815384,0.0025,88457.0,88442.0,0.50414684]
[1766142815584,0.05902493,88457.0,88442.0,0.49284]
[1766142815741,0.0025,88457.0,88442.0,0.49284]
[1766142815946,0.89653,88456.0,88442.0,0.49284]
[1766142816166,0.48963,88454.0,88442.0,0.49284]
[1766142816366,0.48963,88453.0,88442.0,0.49284]
[1766142816547,0.89653,88450.0,88440.0,1.82558926]
[1766142816908,0.0002,88470.0,88464.0,0.40999]
[1766142817105,0.89653,88482.0,88467.0,0.01130364]
[1766142817249,0.89653,88482.0,88468.0,0.02260704]
[1766142817655,0.0002,88484.0,88472.0,0.49284]
[1766142818026,0.0002,88484.0,88473.0,0.49852]
[1766142818451,0.0002,88484.0,88475.0,0.49284]
[1766142818864,0.0002,88484.0,88477.0,0.40999]
[1766142818992,0.0002,88484.0,88481.0,0.02714134]
[1766142819206,0.001099,88477.0,88474.0,0.01130275]
[1766142819408,0.001099,88477.0,88473.0,0.00568]
[1766142819615,0.48963,88480.0,88474.0,0.00568]
[1766142819815,0.4069,88479.0,88467.0,0.0025]
[1766142820036,0.4069,88479.0,88468.0,0.00568]
[1766142820554,0.001099,88468.0,88467.0,0.0025]
[1766142820734,0.48963,88476.0,88467.0,0.0025]
[1766142820936,0.89653,88474.0,88467.0,0.0025]